[Event "Summer Prague Open-A 2022"]
[Site "Prague"]
[Date "2022.08.05"]
[Round "1.22"]
[White "Kueppers, Timo"]
[Black "Bystrickiy, Daniil"]
[Result "0-1"]
[ECO "A34"]
[WhiteElo "2314"]
[BlackElo "1951"]
[Annotator "TA"]
[PlyCount "92"]
[EventDate "2022.08.05"]
[EventType "swiss"]
[EventCountry "CZE"]
[SourceTitle "playchess.com"]
[Source "ChessBase"]
[SourceQuality "1"]
[TimeControl "40/5400+30:1800+30"]

{[%evp 13,92,6,21,13,10,-16,0,0,-13,-25,-24,-14,-9,-16,89,83,89,92,102,95,102,116,116,114,136,31,27,17,31,-138,-117,-125,-104,-108,-122,-121,-136,-156,-129,-181,-172,-155,-162,-264,-248,-216,-48,-352,-344,-566,-153,-81,-65,-87,-82,-41,0,-310,-279,-261,-112,-5876,-5869,-5285,-5575,-4746,-5226,-2514,-2162,-3741,-3410,-1978,-1815,-1188,-1172,-6193,-5226,-29986,-29987,-29987,-29988]} 1. c4 {[%emt 0:00:04]} Nf6 {[%emt 0:00:05]} 2. Nc3 {[%emt 0:00:15]} c5 {[%emt 0:00:02]} 3. g3 {[%emt 0:00:36]} d5 {[%emt 0:00:24]} 4. cxd5 {[%emt 0:00:04]} Nxd5 {[%emt 0:00:03]} 5. Bg2 {[%emt 0:00:03]} Nc7 {[%emt 0:00:46]} 6. Nf3 {[%emt 0:00:55]} Nc6 {[%emt 0:00:07]} 7. a3 {[%emt 0:00:18]} g6 {[%emt 0:00:39]} 8. h4 {[%emt 0:00:04] A34: Symmetrical English: 2 Nc3, lines with ...d5.} h5 {[%emt 0:05:36] [#]} 9. Rb1 $146 {[%emt 0:03:34]} ({Predecessor:} 9. d3 Bg7 10. Ne4 b6 11. Rb1 Bf5 12. Nfg5 Qd7 13. Be3 O-O 14. b4 cxb4 15. axb4 Nd5 {1-0 (69) Santos Izquierdo,F (2121)-Bustos Bernardo,S (2158) Conil de la Frontera 2021}) 9... Bf5 {[%emt 0:07:00]} 10. d3 {[%emt 0:00:41] The position is equal.} Bg7 {[%emt 0:00:16]} 11. Ng5 {[%emt 0:07:40]} c4 {[%emt 0:14:26][%cal Rc4d3]} 12. e4 {[%emt 0:10:02]} Bg4 {[%emt 0:00:31]} 13. f3 {[%emt 0:00:41]} Qd6 {[%emt 0:10:56]} 14. Bf4 $16 {[%emt 0:08:12]} ({Don't play} 14. fxg4 $6 Qxg3+ 15. Kf1 hxg4 $11) 14... e5 {[%emt 0:02:14]} 15. Be3 {[%emt 0:02:27]} Be6 {[%emt 0:00:50]} 16. Nxe6 {[%emt 0:00:07]} Qxe6 {[%emt 0:00:07]} 17. Bh3 {[%emt 0:00:18]} f5 {[%emt 0:02:58]} 18. dxc4 $1 {[%emt 0:17:19]} Qxc4 {[%emt 0:01:57]} 19. Rc1 {[%emt 0:19:51]} ({White should play} 19. exf5 $16 Rd8 20. Qe2 Qxe2+ 21. Nxe2) 19... Qf7 $14 {[%emt 0:00:23]} 20. Nd5 {[%emt 0:06:00]} O-O-O {[%emt 0:05:30][%cal Rc7d5,Be8c8,Bc8b8,Bb8a8][%mdl 32]} 21. exf5 $2 {[%emt 0:08:42]} Kb8 {[%emt 0:07:59]} 22. Rxc6 {[%emt 0:02:29]} Nxd5 {[%emt 0:04:47]} 23. Qb3 {[%emt 0:03:46] aiming for Ra6.} Qd7 $1 {[%emt 0:01:29]} 24. Rc1 {[%emt 0:01:25] And now f6 would win.} Nxe3 {[%emt 0:00:13]} 25. Qxe3 {[%emt 0:00:30] Hoping for f6.} Bh6 $1 {[%emt 0:00:09][%mdl 64] Skewer} 26. Qxe5+ {[%emt 0:02:06]} (26. f4 $17 {was worth a try.} Rhe8 27. O-O exf4 28. Qb3) 26... Ka8 $19 {[%emt 0:00:02] ( -> ...Qd2+)} 27. O-O {[%emt 0:00:18][%cal Of1d1] Black must now prevent Rfd1!} Rhe8 {[%emt 0:02:34]} 28. Qf6 {[%emt 0:02:01]} (28. Qc7 $142 Bxc1 29. Rxc1 Re1+ 30. Bf1 Qd4+ 31. Kh1 Rxc1 32. Qxc1) 28... Bxc1 {[%emt 0:00:19]} 29. Rxc1 {[%emt 0:00:03] [#]} Qd2 $2 {[%emt 0:00:21]} (29... a6 $1 $19 {...Ka7 is the strong threat.} 30. f4 Qd2) 30. Rf1 $2 {[%emt 0:00:36][%mdl 8192]} ({Only move:} 30. Qc3 $15 Qd7 31. Rc2) 30... gxf5 {[%emt 0:00:33]} 31. Qxf5 $2 {[%emt 0:02:01]} (31. Qc3 Rg8 32. Qxd2 Rxd2 33. Rf2 Rxg3+ 34. Bg2 Rd1+ 35. Kh2) 31... Qe3+ $2 {[%emt 0:02:02]} (31... Rg8 $19 {and Black stays clearly on top.} 32. g4 (32. Qe5 $2 Rde8 $19) 32... Qd4+ 33. Kh1 Rh8) 32. Kh2 $17 {[%emt 0:01:47]} Qe2+ {[%emt 0:00:16]} 33. Bg2 $1 {[%emt 0:00:04]} Rd2 {[%emt 0:00:26][%csl Gd2][%cal Re2g2] Black is more active.} 34. Rg1 {[%emt 0:00:01]} Qf2 {[%emt 0:01:56]} 35. Qxh5 $2 {[%emt 0:00:18][%mdl 8192]} (35. f4 $1 $11) 35... Rg8 $19 {[%emt 0:00:08]} 36. Qe5 {[%emt 0:01:07] [#]} Rxb2 $40 {[%emt 0:01:27][%mdl 128] White is in trouble.} (36... Re2 $1 $19 {[%cal Re2e5] is more deadly.} 37. Qf4 Rxb2) 37. h5 $2 {[%emt 0:01:04][%mdl 8192] [#]} (37. Qe1 $17 Qxf3 38. Kh1 Qxa3 39. Qe6) 37... Rb5 $3 {[%emt 0:00:05][%cal Bb2b5,Bb5e5,Be5e3,Be3a3,Ba3a1,Ba1g1,Bg1g2][%mdl 608] Skewer} 38. Rf1 {[%emt 0:01:11]} Qxf1 {[%emt 0:01:06]} 39. Bxf1 {[%emt 0:00:06]} Rxe5 {[%emt 0:00:03]} 40. g4 {[%emt 0:00:05]} Re3 {[%emt 0:00:34]} 41. Kg3 {[%emt 0:30:05]} Rxa3 {[%emt 0:30:23] Strongly threatening ...a5.} 42. Bc4 {[%emt 0:00:57]} Rf8 {[%emt 0:01:32]} 43. Bd5 {[%emt 0:00:03]} Ra1 {[%emt 0:01:20]} 44. f4 {[%emt 0:01:29]} Rg1+ {[%emt 0:04:50]} 45. Bg2 {[%emt 0:00:33]} a5 {[%emt 0:00:12]} 46. Kf2 {[%emt 0:00:00] [#]} Rxg2+ $1 {[%emt 0:00:00] Weighted Error Value: White=0.90/Black=0.29 (precise)} 0-1

[Event "Summer Prague Open-A 2022"]
[Site "Prague"]
[Date "2022.08.05"]
[Round "1.23"]
[White "Fiskaaen, Martin Holten"]
[Black "Guz, Ari"]
[Result "1-0"]
[ECO "D37"]
[WhiteElo "1930"]
[BlackElo "2331"]
[Annotator "TA"]
[PlyCount "145"]
[EventDate "2022.08.05"]
[EventType "swiss"]
[EventCountry "CZE"]
[SourceTitle "playchess.com"]
[Source "ChessBase"]
[SourceQuality "1"]
[TimeControl "40/5400+30:1800+30"]

{[%evp 9,145,23,34,27,27,24,41,29,35,25,50,48,64,57,81,79,84,75,89,87,106,97,124,88,119,119,151,119,114,110,110,114,115,115,91,89,137,119,113,108,109,108,132,141,134,129,158,153,175,163,181,0,178,0,195,193,216,166,163,183,222,123,200,200,209,209,193,193,293,273,261,135,185,188,179,188,253,204,303,291,326,334,320,307,731,697,643,550,550,413,571,485,479,460,775,766,814,738,29979,29980,29980,29979,29990,29983,29983,29984,29984,29977,29978,1102,29977,29978,29978,29979,29978,29975,29975,29976,29976,29976,29977,29974,29972,425,29974,29975,29974,29974,29969,6199,29971,29968,29976,29974,29993,29989,29989,29976]} 1. d4 {[%emt 0:00:06]} Nf6 {[%emt 0:01:08]} 2. c4 {[%emt 0:00:13]} e6 {[%emt 0:00:10]} 3. Nf3 {[%emt 0:00:20]} d5 {[%emt 0:00:12]} 4. Nc3 {[%emt 0:00:37]} Nbd7 {[%emt 0:00:50]} 5. Bf4 {[%emt 0:05:09]} dxc4 {[%emt 0:00:25]} 6. e3 {[%emt 0:21:26] D37: Queen's Gambit Declined: 5 Bf4.} b5 {[%emt 0:02:46]} 7. Nxb5 {[%emt 0:09:16]} Bb4+ {[%emt 0:00:06]} 8. Nc3 {[%emt 0:04:52] White is slightly better.} Nd5 {[%emt 0:00:06]} 9. Rc1 {[%emt 0:08:23] [#]} (9. Bxc4 Nxc3 10. bxc3 Bxc3+ 11. Nd2 Bxa1 12. Qxa1 O-O $15) 9... Bxc3+ $146 {[%emt 0:03:25]} ({Predecessor:} 9... N7b6 10. Bg3 c5 11. Be2 O-O 12. O-O Bb7 13. Nxd5 Qxd5 14. a3 cxd4 15. Qxd4 Be7 16. Qxd5 Bxd5 {0-1 (42) Ding,L (2805)-Aronian,L (2765) Saint Louis 2019}) 10. bxc3 {[%emt 0:00:13]} Nxf4 {[%emt 0:00:03]} 11. exf4 {[%emt 0:00:20]} Qf6 {[%emt 0:02:51]} 12. g3 $1 {[%emt 0:09:51]} (12. Bxc4 Qxf4 13. O-O Bb7 $11) 12... O-O {[%emt 0:01:49]} 13. Bxc4 {[%emt 0:03:37]} Bb7 {[%emt 0:01:28]} 14. O-O {[%emt 0:01:40]} Nb6 {[%emt 0:01:07]} 15. Bd3 {[%emt 0:04:37]} Rfd8 {[%emt 0:06:22][%cal Oc7c5]} 16. Qe2 {[%emt 0:00:40]} Rac8 {[%emt 0:06:07]} 17. Ng5 {[%emt 0:03:30]} g6 {[%emt 0:00:24]} 18. Be4 {[%emt 0:03:40]} Bd5 {[%emt 0:00:38]} 19. Bxd5 {[%emt 0:00:53]} exd5 {[%emt 0:00:09]} 20. Rfe1 {[%emt 0:02:58] White is more active.} c5 {[%emt 0:04:01]} 21. Nf3 {[%emt 0:02:29]} Nc4 {[%emt 0:04:17]} 22. Qe7 {[%emt 0:07:12]} Qc6 {[%emt 0:04:18]} (22... Qxe7 $142 23. Rxe7 a5) 23. Ne5 {[%emt 0:01:30]} (23. Qxa7 $2 Rd7 24. Qxc5 Qa6 25. Qxc8+ (25. Qb4 $2 Rb7 $19) 25... Qxc8 $19) 23... Nxe5 {[%emt 0:00:26]} 24. fxe5 {[%emt 0:00:28]} (24. Qxe5 $6 Re8 25. Qg5 cxd4 26. cxd4 Qxc1 27. Rxc1 Rxc1+ 28. Kg2 Rc2 $11) 24... Rd7 {[%emt 0:02:09]} 25. Qg5 {[%emt 0:00:23]} Re8 {[%emt 0:00:35]} 26. h4 {[%emt 0:01:44]} Rde7 {[%emt 0:01:18]} 27. Qd2 {[%emt 0:02:17]} Re6 {[%emt 0:01:47]} 28. Kg2 {[%emt 0:01:31]} Rb8 {[%emt 0:00:53]} 29. Rb1 {[%emt 0:01:20]} Rc8 {[%emt 0:01:26]} 30. Rbc1 {[%emt 0:00:30]} Rb8 $1 {[%emt 0:02:13]} 31. Rb1 {[%emt 0:00:06]} Rc8 {[%emt 0:00:08]} 32. Rb2 {[%emt 0:01:42]} Rce8 {[%emt 0:00:45]} 33. f4 {[%emt 0:01:04]} cxd4 {[%emt 0:00:16]} 34. cxd4 {[%emt 0:00:14]} (34. Qxd4 R6e7 35. Re3 Rc7 $16) 34... Qa4 {[%emt 0:00:12]} 35. Qb4 {[%emt 0:01:09]} (35. f5 $18 Rb6 36. Rxb6 axb6 37. f6) 35... Qxb4 {[%emt 0:06:33]} (35... Ra6 $16 {is a better defense.}) 36. Rxb4 $16 {[%emt 0:00:01][%mdl 4096] Endgame KRR-KRR} Ra6 {[%emt 0:01:22]} 37. Re2 {[%emt 0:00:26]} Rc8 {[%emt 0:00:21]} 38. Rb5 {[%emt 0:00:48]} Ra3 {[%emt 0:00:10]} (38... Rc3 $142 39. Kh2 (39. Rxd5 Raa3 $16) 39... Rd3) 39. Kh2 $18 {[%emt 0:01:21]} (39. Rxd5 Rcc3 $16) 39... Rd8 {[%emt 0:00:49] [#]} 40. Reb2 {[%emt 0:00:43]} (40. Rb7 $1 $18) 40... Rd3 {[%emt 0:03:44]} (40... Rd7 $16 {keeps fighting.} 41. Rb8+ Kg7) 41. Rb7 {[%emt 0:18:45]} Rxd4 {[%emt 0:03:46]} 42. Rxa7 {[%emt 0:00:53]} Rc8 {[%emt 0:00:12]} (42... Re4 {was worth a try.} 43. Kh3 h5) 43. e6 {[%emt 0:07:46]} fxe6 {[%emt 0:03:11]} (43... Re4 $142 44. Rxf7 (44. exf7+ Kf8 $18) 44... Rxe6) 44. Rbb7 {[%emt 0:00:14] Rg7+ is the strong threat.} h5 {[%emt 0:01:06]} 45. Rg7+ {[%emt 0:00:40]} Kf8 {[%emt 0:00:11]} 46. Rh7 {[%emt 0:02:13][%cal Rh7h8]} ({Wrong is} 46. Rxg6 $2 Rd2+ 47. Kh3 Rcc2 48. Rf6+ Ke8 49. Rxe6+ Kd8 50. Rd6+ Kc8 51. Rc6+ (51. Ra8+ {is a self mate.} Kb7) 51... Rxc6 $19) 46... Rc2+ $2 {[%emt 0:00:56]} (46... Kg8 47. Rag7+ Kf8 48. Rxg6 Re4 49. Rf6+ (49. Rxh5 Ke7 $18) 49... Kg8 50. Rxh5 Rc2+ 51. Kh3 Rc7 52. Rg5+ Rg7) 47. Kh3 {[%emt 0:00:10][%cal Rh7h8]} Kg8 {[%emt 0:00:03] Prevents Rh8+.} 48. Rag7+ {[%emt 0:00:55]} Kf8 {[%emt 0:00:15] ( -> ...Rdd2)} 49. Rxg6 {[%emt 0:00:31]} Rdd2 {[%emt 0:01:00][%csl Gc2][%cal Rd2h2]} 50. Rxh5 {[%emt 0:00:15]} Kf7 {[%emt 0:00:18]} 51. Rhh6 {[%emt 0:02:52]} d4 {[%emt 0:02:33]} (51... Re2 $142 52. h5 Ke7) 52. Rxe6 {[%emt 0:00:38]} d3 {[%emt 0:00:38]} 53. Rd6 {[%emt 0:00:33]} Rxa2 {[%emt 0:00:24]} 54. Rh7+ {[%emt 0:00:26]} Kg8 {[%emt 0:00:27]} 55. Rc7 {[%emt 0:00:57][%cal Rd6d8]} Rh2+ {[%emt 0:00:15]} 56. Kg4 {[%emt 0:00:08][%cal Rd6d8]} Ra8 {[%emt 0:00:05]} 57. Rxd3 {[%emt 0:00:10]} Kh8 {[%emt 0:00:11]} 58. Rd5 {[%emt 0:00:46]} Rg2 {[%emt 0:00:20]} 59. Rc3 {[%emt 0:00:36]} (59. Rd6 $142 Rga2 60. Kg5 R2a5+ 61. f5 Rg8+ 62. Kh5 Rga8 63. g4 R5a7 {[#]} 64. Rd8+ $3 {[%mdl 512]} Rxd8 65. Rxa7) 59... Rg8+ {[%emt 0:00:27]} 60. Rg5 {[%emt 0:00:18]} Re8 {[%emt 0:00:08]} 61. h5 {[%emt 0:00:46]} Re7 {[%emt 0:00:16]} 62. Kf5 {[%emt 0:01:02]} Kh7 {[%emt 0:00:30]} 63. Rc6 {[%emt 0:00:19]} Rd2 {[%emt 0:00:18]} 64. Kg4 {[%emt 0:00:23]} Rg2 {[%emt 0:00:21]} 65. Kh3 {[%emt 0:00:32]} Rg1 {[%emt 0:00:17]} 66. Rgc5 {[%emt 0:00:36]} (66. Rgg6 $142 Rf1 67. Kg4 Rd7 68. Rh6+ Kg8 69. f5 Rf7 70. Rcg6+ Kf8 71. Rh8+ Ke7 72. h6 R1xf5 73. h7) 66... Re3 {[%emt 0:00:20]} (66... Rg7 $18 67. Rg5 Rf7) 67. Rg6 {[%emt 0:00:15]} Re7 {[%emt 0:00:24]} 68. Re5 {[%emt 0:00:31]} Ra7 {[%emt 0:00:31]} 69. Rge6 {[%emt 0:00:18]} (69. f5 $142 Rga1 70. Kh4 R1a5 71. Rxa5 Rxa5 72. g4 Kh8 73. f6 Ra7 74. Rg7) 69... Ra3 {[%emt 0:00:07]} 70. Re3 {[%emt 0:00:11] White mates.} Ra2 {[%emt 0:00:09]} 71. Kg4 {[%emt 0:00:18]} Rag2 {[%emt 0:00:54]} 72. Rb6 {[%emt 0:00:32]} Kg7 {[%emt 0:00:16]} 73. Rc3 {[%emt 0:00:32] Weighted Error Value: White=0.22 (precise) /Black=0.34} 1-0

[Event "Summer Prague Open-A 2022"]
[Site "Prague"]
[Date "2022.08.05"]
[Round "1.24"]
[White "Hozda, Max"]
[Black "Kundin, Alexander"]
[Result "1/2-1/2"]
[ECO "D11"]
[WhiteElo "1861"]
[BlackElo "2305"]
[Annotator "TA"]
[PlyCount "58"]
[EventDate "2022.08.05"]
[EventType "swiss"]
[EventCountry "CZE"]
[SourceTitle "playchess.com"]
[Source "ChessBase"]
[SourceQuality "1"]
[TimeControl "40/5400+30:1800+30"]

{[%evp 20,58,77,22,29,31,47,16,32,31,15,7,14,8,9,-27,-29,-110,-62,-76,-80,-89,-75,-150,-20,-50,38,0,56,0,0,0,0,0,28,22,21,37,139,155,142]} 1. d4 {[%emt 0:00:03]} d5 {[%emt 0:00:03]} 2. c4 {[%emt 0:00:05]} c6 {[%emt 0:00:04]} 3. Nf3 {[%emt 0:00:06]} dxc4 {[%emt 0:01:25]} 4. e3 {[%emt 0:01:01]} b5 {[%emt 0:00:05]} 5. a4 {[%emt 0:01:24]} e6 {[%emt 0:00:15]} 6. axb5 {[%emt 0:04:42]} cxb5 {[%emt 0:00:02]} 7. b3 {[%emt 0:00:58]} Bb4+ {[%emt 0:00:04]} 8. Bd2 {[%emt 0:01:33]} Bxd2+ {[%emt 0:00:03]} 9. Nbxd2 {[%emt 0:06:05]} a5 {[%emt 0:00:07]} 10. bxc4 {[%emt 0:01:46]} b4 {[%emt 0:00:01]} 11. c5 {[%emt 0:02:34]} (11. Bd3 $16) 11... Nf6 $11 {[%emt 0:00:39] D11: Slav Defence: 3 Nf3 sidelines and 3...Nf6 4 e3 Bg4.} 12. Nc4 {[%emt 0:07:06] [#] aiming for Nd6+.} O-O {[%emt 0:00:07]} 13. Bd3 {[%emt 0:03:30]} Nc6 {[%emt 0:12:00] [#] The position is equal.} 14. Qc2 $146 {[%emt 0:04:50]} ({Predecessor:} 14. O-O Ba6 15. Nb6 Bxd3 16. Qxd3 Rb8 17. e4 Rxb6 18. cxb6 Qxb6 19. e5 Nd5 20. Ng5 {0-1 (47) Wohl,A (2400)-Lanzani,M (2355) Turin 1996}) 14... Ba6 {[%emt 0:01:02]} 15. Nb6 {[%emt 0:04:06]} Bxd3 {[%emt 0:01:06]} 16. Qxd3 {[%emt 0:00:05]} Ra7 {[%emt 0:00:14]} 17. e4 {[%emt 0:05:25]} Nd7 $1 {[%emt 0:04:37][%cal Od7c5]} 18. Na4 {[%emt 0:02:47] [#]} (18. Qb5 $11 {keeps the balance.} Nxb6 19. Qxc6) 18... Nde5 $1 $17 {[%emt 0:07:32][%mdl 512]} 19. Nxe5 {[%emt 0:02:39]} Nxe5 {[%emt 0:00:05][%mdl 64] Pin} 20. Qd2 {[%emt 0:05:50]} Nc6 {[%emt 0:34:03]} 21. O-O-O {[%emt 0:05:37]} (21. Rd1 $142) 21... Rd7 {[%emt 0:00:35]} (21... Qf6 $17 {And now ...Rd8 would win.} 22. Kb1 Rd8) 22. d5 $11 {[%emt 0:01:04]} exd5 {[%emt 0:00:24]} ({Black should try} 22... Na7 $1 $15) 23. exd5 $14 {[%emt 0:04:15] Strongly threatening Nb6.} Qf6 {[%emt 0:00:22] White must now prevent ...Qa1+.} 24. Nb6 {[%emt 0:08:34]} (24. Kc2 $1 $14) 24... Rdd8 {[%emt 0:16:54][%cal Oa5a4]} 25. Qb2 {[%emt 0:03:58]} Qe7 {[%emt 0:04:59]} 26. Qc2 {[%emt 0:05:54] Active counter play!} b3 {[%emt 0:01:02]} 27. Qc3 {[%emt 0:03:15]} Nb4 {[%emt 0:01:01] ...Na2+ is the strong threat.} 28. Kb2 {[%emt 0:01:04]} Qe2+ {[%emt 0:06:58]} (28... Qg5 $1 $14) 29. Rd2 $16 {[%emt 0:01:32] Chess con chili.} Qb5 {[%emt 0:00:03] Weighted Error Value: White=0.27 (precise) /Black=0.24 (precise)} 1/2-1/2

[Event "Summer Prague Open-A 2022"]
[Site "Prague"]
[Date "2022.08.06"]
[Round "2.1"]
[White "Zanan, Evgeny"]
[Black "Gavriely, Or"]
[Result "1-0"]
[ECO "B10"]
[WhiteElo "2521"]
[BlackElo "2072"]
[Annotator "TA"]
[PlyCount "93"]
[EventDate "2022.08.05"]
[EventType "swiss"]
[EventCountry "CZE"]
[SourceTitle "playchess.com"]
[Source "ChessBase"]
[SourceQuality "1"]
[TimeControl "40/5400+30:1800+30"]

{[%evp 10,93,22,15,20,27,32,0,33,31,25,32,25,23,31,16,33,19,28,22,39,31,58,56,55,47,102,93,101,98,100,37,43,30,29,37,38,43,40,19,23,23,21,29,64,6,14,9,25,0,0,0,75,52,56,58,86,88,105,102,110,107,96,108,113,109,202,203,210,208,343,328,318,302,372,367,541,529,767,740,731,721,1039,666,6103,6079]} 1. e4 {[%emt 0:00:01]} c6 {[%emt 0:00:23]} 2. Nf3 {[%emt 0:00:12]} d5 {[%emt 0:00:07]} 3. Nc3 {[%emt 0:00:03]} dxe4 {[%emt 0:00:04]} 4. Nxe4 {[%emt 0:00:03]} Nf6 {[%emt 0:00:06]} 5. Qe2 {[%emt 0:00:04]} Nxe4 {[%emt 0:00:03]} 6. Qxe4 {[%emt 0:00:03]} Qd5 {[%emt 0:00:05] B11: Caro-Kann: Two Knights Variation.} 7. Qf4 {[%emt 0:00:21]} Qf5 {[%emt 0:00:06]} 8. Qe3 {[%emt 0:00:03]} Qe6 {[%emt 0:00:09] The position is equal.} 9. b3 {[%emt 0:00:09]} Qxe3+ {[%emt 0:00:06]} 10. fxe3 {[%emt 0:00:04]} Bf5 {[%emt 0:07:01]} 11. Bb2 {[%emt 0:03:23]} a5 {[%emt 0:05:52] [#]} 12. d3 $146 {[%emt 0:06:42]} ({Predecessor:} 12. Be2 e6 13. Rf1 Nd7 14. O-O-O a4 15. Nh4 Bg6 16. Kb1 f6 17. Nxg6 hxg6 18. h3 {½-½ (98) Savchenko,B (2581)-Goryachkina,A (2504) Sochi 2019}) 12... a4 {[%emt 0:13:38]} 13. e4 {[%emt 0:04:21]} Bg6 {[%emt 0:07:24]} 14. h4 {[%emt 0:03:14] [#] Threatens to win with h5.} h5 {[%emt 0:03:45]} 15. Ne5 {[%emt 0:02:39][%cal Bf3e5,Be5g6,Bg6f4,Bf4h3,Bh3g5][%mdl 32]} Bh7 {[%emt 0:01:14]} 16. Be2 {[%emt 0:00:09]} Bg8 {[%emt 0:00:14]} 17. O-O-O {[%emt 0:13:05]} f6 {[%emt 0:08:23]} (17... Nd7 $14) 18. Ng6 $16 {[%emt 0:02:05]} Rh6 {[%emt 0:02:13]} 19. Nf4 {[%emt 0:03:55] White is much more active.} Bf7 {[%emt 0:00:54]} 20. e5 {[%emt 0:00:32]} ({Better is} 20. d4 $16) 20... fxe5 {[%emt 0:01:18]} 21. Bxe5 {[%emt 0:14:02]} Nd7 {[%emt 0:00:29]} 22. Bb2 {[%emt 0:00:01]} e5 {[%emt 0:00:25]} 23. Nh3 {[%emt 0:00:02]} Bd5 {[%emt 0:02:33]} 24. Bf3 {[%emt 0:08:08]} Bxf3 {[%emt 0:00:55]} 25. gxf3 {[%emt 0:00:04]} axb3 {[%emt 0:01:59]} 26. axb3 {[%emt 0:01:11]} Be7 {[%emt 0:00:40]} 27. Ng5 {[%emt 0:12:06]} (27. Rdg1 $14) 27... Rg6 $11 {[%emt 0:02:41]} 28. Rdg1 {[%emt 0:18:31]} Bf6 {[%emt 0:01:16]} 29. Ne4 {[%emt 0:03:07]} Rxg1+ {[%emt 0:00:15]} 30. Rxg1 {[%emt 0:00:01]} O-O-O {[%emt 0:07:07]} (30... Kf7 $11) 31. Nxf6 {[%emt 0:00:48]} gxf6 $16 {[%emt 0:00:01][%mdl 4096] Endgame KRB-KRN} 32. Rg6 {[%emt 0:02:39]} Rh8 {[%emt 0:00:06] White leaves nothing to chance now.} 33. d4 {[%emt 0:00:26]} e4 {[%emt 0:13:35]} 34. fxe4 {[%emt 0:00:14] aiming for Kd2.} Re8 {[%emt 0:00:04]} 35. Rh6 {[%emt 0:00:45]} Rxe4 {[%emt 0:00:03]} 36. Rxh5 {[%emt 0:00:05]} f5 {[%emt 0:00:32]} 37. Kd2 {[%emt 0:00:43]} f4 {[%emt 0:04:37]} (37... Rg4 $16 {was worth a try.}) 38. Rf5 $18 {[%emt 0:00:43]} f3 {[%emt 0:00:03]} 39. h5 {[%emt 0:00:05]} ({Resist} 39. Rxf3 $6 Rxh4 40. Kd3 Kc7) 39... Rh4 {[%emt 0:00:52]} (39... Kd8 {was called for.} 40. Kd3 Rh4) 40. Ke3 {[%emt 0:03:24]} ({Weaker is} 40. Rxf3 Rxh5 41. Ba3 Kd8 $16) 40... Rh3 {[%emt 0:00:02]} 41. Ba3 {[%emt 0:32:03]} Nb6 {[%emt 0:31:14]} 42. c4 {[%emt 0:00:00] Against Nd5+} f2+ {[%emt 0:00:00]} (42... Nd7 {is a better defense.} 43. Be7 b6) 43. Kxf2 {[%emt 0:00:00] White is clearly winning.} Rxb3 {[%emt 0:00:00]} 44. Rf3 {[%emt 0:00:00]} Rb1 {[%emt 0:00:00]} 45. Kg2 {[%emt 0:00:00] [#] Strongly threatening h6.} Nxc4 {[%emt 0:00:00]} 46. h6 {[%emt 0:00:00][%cal Bh5h6,Bh6h7][%mdl 32] White threatens h7 and mate.} Nxa3 {[%emt 0:00:00]} 47. h7 {[%emt 0:00:00] Weighted Error Value: White=0.10 (very precise) /Black=0.26 (precise)} 1-0

[Event "Summer Prague Open-A 2022"]
[Site "Prague"]
[Date "2022.08.06"]
[Round "2.2"]
[White "Schroer, Marcel"]
[Black "Pap, Gyula"]
[Result "1/2-1/2"]
[ECO "A41"]
[WhiteElo "2119"]
[BlackElo "2481"]
[Annotator "TA"]
[PlyCount "24"]
[EventDate "2022.08.05"]
[EventType "swiss"]
[EventCountry "CZE"]
[SourceTitle "playchess.com"]
[Source "ChessBase"]
[SourceQuality "1"]
[TimeControl "40/5400+30:1800+30"]

{[%evp 10,24,31,19,39,4,8,11,19,19,8,6,18,14,27,26,33]} 1. d4 {[%emt 0:00:10]} d6 {[%emt 0:00:27]} 2. Nf3 {[%emt 0:00:28]} g6 {[%emt 0:02:42]} 3. g3 {[%emt 0:00:28]} Bg7 {[%emt 0:02:25]} 4. Bg2 {[%emt 0:00:14]} Nf6 {[%emt 0:04:09]} 5. O-O {[%emt 0:00:23]} O-O {[%emt 0:00:06]} 6. b3 {[%emt 0:00:52]} b5 {[%emt 0:05:28] A49: 1 d4 Nf6 2 Nf3 g6 3 g3: Anti-King's Indian systems.} 7. Nbd2 {[%emt 0:01:34]} Bb7 {[%emt 0:01:53]} 8. c4 {[%emt 0:00:38]} bxc4 {[%emt 0:12:56] The position is equal.} 9. bxc4 {[%emt 0:00:29]} Nbd7 {[%emt 0:04:13]} 10. Rb1 {[%emt 0:02:47]} Rb8 {[%emt 0:06:45]} 11. Qc2 {[%emt 0:16:58] [#]} Ba8 $146 {[%emt 0:12:08]} ({Predecessor:} 11... c5 12. d5 Qa5 13. Rb5 Qc7 14. Bb2 Nb6 15. e4 e5 16. dxe6 fxe6 17. e5 Ne8 18. exd6 Nxd6 19. Bxg7 Kxg7 {1-0 (51) Harsha,B (2489)-Mamedov,R (2656) Warsaw 2021}) 12. Ba3 {[%emt 0:04:27]} c5 {[%emt 0:04:34] A rather calm draw.  Weighted Error Value: White=0.08 (flawless) /Black=0.05 (flawless)} 1/2-1/2